Cogmind - Beta 9.6 @@@ ROGUE MODE // 2020.07.21 @ 21:23:40 Player: Bacarospus Result: Destroyed by G-34 Mercenary with Small Laser Performance ------------- Evolutions (1) 500 Regions Visited (4) 800 Robots Destroyed (22) 110 Value Destroyed (761) 761 Prototype IDs (1) 20 Alien Tech Used (0) 0 Bonus (200) 200 TOTAL SCORE: 2391 Bonus ------- Entered Garrisons 200 Cogmind --------- Core Integrity 0/400 Matter 245/300 Energy 100/100 System Corruption 0% Temperature Cool (6) Movement Core (100) Ox1 Location -9/Garrison Parts ------- > --- POWER (1) -------- (None) > --- PROPULSION (2) --- (None) > --- UTILITY (3) ------ Small Storage Unit Visual Processing Unit > --- WEAPON (3) ------- (None) > --- INVENTORY (6) ---- Heat Sink Small Storage Unit Peak State ------------ > --- POWER ------------ Ion Engine > --- PROPULSION ------- Aluminum Leg Aluminum Leg > --- UTILITY ---------- Small Storage Unit Visual Processing Unit Signal Interpreter > --- WEAPON ----------- Improved EM Shotgun Heavy Assault Rifle Heavy Assault Rifle > --- INVENTORY -------- Light Ion Engine Heat Sink Small Storage Unit Medium Laser Assault Rifle Heavy Assault Rifle [Rating: 14] Favorites ----------- Power Ion Engine Engine Ion Engine Propulsion Aluminum Leg Leg Aluminum Leg Utility Small Storage Unit Device Heat Sink Storage Small Storage Unit Processor Visual Processing Unit Weapon Heavy Assault Rifle Energy Gun Medium Laser Ballistic Gun Heavy Assault Rifle Build | -11 -10 -9 -9 -9 ------- Run | Scr Mat Mat Sto Gar Slots Evolved 2 | . . 2 . . Power . | . . . . . Propulsion . | . . . . . Utility 1 | . . 1 . . Weapon 1 | . . 1 . . Parts Attached 24 | 6 1 7 2 8 Power 2 | 1 . . . 1 Engine 2 | 1 . . . 1 Core . | . . . . . Reactor . | . . . . . Propulsion 5 | 2 . . 1 2 Treads . | . . . . . Leg 5 | 2 . . 1 2 Wheel . | . . . . . Hover . | . . . . . Flight . | . . . . . Utility 4 | 1 1 1 . 1 Device 1 | . . . . 1 Storage 1 | 1 . . . . Processor 2 | . 1 1 . . Hackware . | . . . . . Protection . | . . . . . Artifact . | . . . . . Weapon 13 | 2 . 6 1 4 Energy Gun 6 | 2 . 1 . 3 Energy Cannon . | . . . . . Ballistic Gun 7 | . . 5 1 1 Ballistic Cannon . | . . . . . Launcher . | . . . . . Special Weapon . | . . . . . Impact Weapon . | . . . . . Slashing Weapon . | . . . . . Piercing Weapon . | . . . . . Special Melee Weapon . | . . . . . Unidentified Prototypes 1 | . . 1 . . Parts Lost 15 | . . 1 . 14 Power 1 | . . . . 1 Propulsion 4 | . . . . 4 Utility 2 | . . . . 2 Weapon 8 | . . 1 . 7 Highest Loss Streak 8 | . . 1 . 8 Average Slot Usage (%) 89 | . 95 98 100 68 Engine 9 | . 14 11 11 3 Leg 20 | . 28 22 22 14 Storage 11 | . 14 11 11 11 Processor 17 | . 9 22 22 15 Energy Gun 10 | . 28 13 . 5 Ballistic Gun 17 | . . 17 33 16 Naked Turns . | . . . . . Heaviest Build 18 | 13 13 18 18 16 Greatest Support 20 | 20 20 20 20 20 Greatest Overweight (x) 2 | 2 . . . 2 Average Overweight (x) . | . . . . . Largest Inventory Capacity 6 | 6 6 6 6 6 Average Capacity 5 | 4 6 6 6 6 Most Carried 6 | 4 5 6 6 6 Average Carried 4 | 1 2 5 6 3 Final Capacity 6 | 6 6 6 6 6 Final Carried 6 | 1 5 6 6 2 Class Distribution -------------------- 44% | Mutant 25% | Scavenger-Skirmisher 21% | Skirmisher 8% | Scavenger-Mutant Dominant Class ---------------- Mutant | -10/Materials Skirmisher | -9/Materials Scavenger-Skirmisher | -9/Storage Mutant | -9/Garrison Resources | -11 -10 -9 -9 -9 ----------- Run | Scr Mat Mat Sto Gar Matter Collected 649 | 245 25 77 183 119 Remotely . | . . . . . Salvage Created 908 | . 28 119 459 302 Parts 51 | . 8 9 24 10 Haulers Intercepted . | . . . . . Recyclers Shooed 1 | . . . 1 . Parts Field Recycled . | . . . . . Retrieved Matter . | . . . . . Parts Self-Destructed . | . . . . . Prevented . | . . . . . Kills | -11 -10 -9 -9 -9 ------- Run | Scr Mat Mat Sto Gar Combat Hostiles Destroyed 19 | . 1 2 9 7 Guns 19 | . 1 2 9 7 Classes Destroyed 7 | . 2 1 4 . Builder 1 | . . . 1 . Operator 1 | . . . 1 . Watcher 1 | . 1 . . . Swarmer 1 | . 1 . . . Grunt 11 | . . . 5 6 Brawler 2 | . . . 1 1 Sentry 5 | . . 2 3 . Best Kill Streak 5 | . 1 2 5 5 Combat Bots Only 5 | . 1 2 4 5 Max Kills in Single Turn 2 | . 1 1 1 2 Gunslinging 1 | . . . . 1 Exploded . | . . . . . Melee . | . . . . . Uniques/NPCs Destroyed . | . . . . . Combat | -11 -10 -9 -9 -9 -------- Run | Scr Mat Mat Sto Gar Damage Taken 1787 | . 50 137 460 1140 Core 425 | . 19 34 80 292 Absorbed by Shields 72 | . . . . 72 Core Remaining (%) 96 | 100 92 . . . Volleys Fired 64 | . 5 8 24 27 Largest 3 | . 2 3 3 3 Hottest 145 | . 100 145 69 115 Shots Fired 153 | . 10 22 72 49 Gun 153 | . 10 22 72 49 Cannon . | . . . . . Launcher . | . . . . . Special . | . . . . . Kinetic 113 | . . 4 72 37 Thermal 27 | . 10 12 . 5 Explosive . | . . . . . Electromagnetic 13 | . . 6 . 7 Robot Hit Streak 12 | . 1 7 12 10 Robot Miss Streak 4 | . 3 3 4 3 Penetration Max . | . . . . . Secondary Targets 5 | . . . . 5 Max Gunslinging Chain 1 | . . . . 1 Shots Hit Robots 86 | . 3 11 35 37 Core Hits 39 | . 2 5 19 13 Critical Hits . | . . . . . Critical Kills . | . . . . . Critical Parts Destroyed . | . . . . . Melee Attacks . | . . . . . Impact . | . . . . . Slashing . | . . . . . Piercing . | . . . . . Sneak Attacks . | . . . . . Combat Hostiles . | . . . . . Follow-up Attacks . | . . . . . Damage Inflicted 1290 | . 24 122 644 500 Guns 1290 | . 24 122 644 500 Cannons . | . . . . . Explosions . | . . . . . Melee . | . . . . . Ramming . | . . . . . Kinetic 1052 | . . 18 644 390 Thermal 96 | . 24 37 . 35 Explosive . | . . . . . Electromagnetic 142 | . . 67 . 75 Impact . | . . . . . Slashing . | . . . . . Piercing . | . . . . . Highest Corruption . | . . . . . Average Corruption . | . . . . . Corruption Purged . | . . . . . Overload Shots . | . . . . . Overflow Damage . | . . . . . Projectiles . | . . . . . Explosions . | . . . . . Melee . | . . . . . Knockbacks . | . . . . . Impact . | . . . . . Kinetic . | . . . . . Secondary . | . . . . . Self-Inflicted Damage . | . . . . . Shots . | . . . . . Rammed . | . . . . . Targets Rammed . | . . . . . Kicked . | . . . . . Crushed . | . . . . . Highest Temperature 213 | . 156 213 103 92 Average Temperature 61 | . 68 119 39 28 Received Heat Transfer 816 | . . 36 192 588 Siege Activations . | . . . . . Robots Corrupted . | . . . . . Combat Hostiles . | . . . . . Parts Fried . | . . . . . Impact Corruptions . | . . . . . Robots Melted . | . . . . . Combat Hostiles . | . . . . . Parts Melted . | . . . . . Heat Transferred 272 | . 74 111 . 87 Parts Sabotaged . | . . . . . Parts Stolen . | . . . . . Parts Stripped . | . . . . . Power Chain Reactions . | . . . . . Missiles Intercepted . | . . . . . Alert | -11 -10 -9 -9 -9 ------- Run | Scr Mat Mat Sto Gar Peak Influence 372 | . 67 137 372 294 Average Influence 131 | . 36 78 158 258 Maximum Alert Level 1 | . . . 1 1 Low Security (%) 64 | 100 100 100 65 . Level 1 35 | . . . 34 100 Level 2 . | . . . . . Level 3 . | . . . . . Level 4 . | . . . . . Level 5 . | . . . . . High Security . | . . . . . Max Security . | . . . . . Squads Dispatched 2 | . . . 2 . Investigation . | . . . . . Extermination . | . . . . . Reinforcement 1 | . . . 1 . Assault . | . . . . . Garrison 1 | . . . 1 . Intercept . | . . . . . Construction Impeded . | . . . . . Haulers Reinforced . | . . . . . Stealth | -11 -10 -9 -9 -9 --------- Run | Scr Mat Mat Sto Gar Distress Signals 1 | . . 1 . . Communications Jammed . | . . . . . Distress Signals . | . . . . . Times Spotted 32 | . 4 5 12 11 Peak Tracking Total 6 | . 4 2 6 6 Tactical Retreats 2 | . 1 . . 1 Traps | -11 -10 -9 -9 -9 ------- Run | Scr Mat Mat Sto Gar Traps Triggered 3 | . . . . 3 Indirectly . | . . . . . Trap Hack Attempts . | . . . . . Triggered . | . . . . . Disarmed . | . . . . . Reprogrammed . | . . . . . Reused . | . . . . . Traps Extracted . | . . . . . Installed . | . . . . . Triggered . | . . . . . Machines | -11 -10 -9 -9 -9 ---------- Run | Scr Mat Mat Sto Gar Machines Disabled 3 | . . 1 2 . Max in Single Turn 1 | . . 1 1 . Machines Sabotaged . | . . . . . Garrisons Compromised . | . . . . . Overloaded Fab Kills . | . . . . . Fab Network Shutdowns . | . . . . . Hacking | -11 -10 -9 -9 -9 --------- Run | Scr Mat Mat Sto Gar Machines Accessed 1 | . . . 1 . Terminals . | . . . . . Fabricators . | . . . . . Repair Stations . | . . . . . Recycling Units . | . . . . . Scanalyzers . | . . . . . Garrison Access 1 | . . . 1 . Total Hacks 2 | . . . 2 . Successful 1 | . . . 1 . Failed 1 | . . . 1 . Catastrophic . | . . . . . Database Lockouts . | . . . . . Manual . | . . . . . Terminals . | . . . . . Fabricators . | . . . . . Repair Stations . | . . . . . Recycling Units . | . . . . . Scanalyzers . | . . . . . Garrison Access 2 | . . . 2 . Terminal Hacks . | . . . . . Fabricator Hacks . | . . . . . Repair Station Hacks . | . . . . . Recycling Unit Hacks . | . . . . . Scanalyzer . | . . . . . Garrison Access Hacks 1 | . . . 1 . Unlock Access 1 | . . . 1 . Unauthorized Hacks . | . . . . . Terminals . | . . . . . Fabricators . | . . . . . Repair Stations . | . . . . . Recycling Units . | . . . . . Scanalyzers . | . . . . . Garrison Access . | . . . . . Data Cores Recovered . | . . . . . Used . | . . . . . Hacking Detections 1 | . . . 1 . Full Trace Events . | . . . . . Feedback Events . | . . . . . Feedback Blocked . | . . . . . Robot Schematics Acquired . | . . . . . Robots Built . | . . . . . Matter . | . . . . . Time . | . . . . . Total Robot Build Rating . | . . . . . Part Schematics Acquired . | . . . . . Parts Built . | . . . . . Matter . | . . . . . Time . | . . . . . Total Part Build Rating . | . . . . . Parts Repaired . | . . . . . Time . | . . . . . Parts Recycled . | . . . . . Recycled Matter . | . . . . . Retrieved Matter . | . . . . . Retrieved Components . | . . . . . Parts Scanalyzed . | . . . . . Part Schematics Acquired . | . . . . . Parts Damaged . | . . . . . Bothacking | -11 -10 -9 -9 -9 ------------ Run | Scr Mat Mat Sto Gar Used RIF Installer . | . . . . . Robots Hacked . | . . . . . Non-combat . | . . . . . Combat . | . . . . . Robot Hacks Applied . | . . . . . Relay Couplers Released . | . . . . . Robots Rewired . | . . . . . Allies Hacked . | . . . . . Hacks Repelled . | . . . . . Allies | -11 -10 -9 -9 -9 -------- Run | Scr Mat Mat Sto Gar Total Allies . | . . . . . Largest Group . | . . . . . Highest-Rated Group . | . . . . . Highest-Rated Ally . | . . . . . Total Orders . | . . . . . Ally Attacks . | . . . . . Total Damage . | . . . . . Kills . | . . . . . Allies Corrupted . | . . . . . Allies Melted . | . . . . . Intel | -11 -10 -9 -9 -9 ------- Run | Scr Mat Mat Sto Gar Robot Analysis Total . | . . . . . Derelict Logs Recovered . | . . . . . Drone Launches . | . . . . . Drone Recoveries . | . . . . . Exploration | -11 -10 -9 -9 -9 ------------- Run | Scr Mat Mat Sto Gar Turns Passed 910 | 70 180 198 219 243 Spaces Moved 508 | 50 120 123 112 103 Core 34 | 25 . . . 9 Treads . | . . . . . Legs 474 | 25 120 123 112 94 Wheels . | . . . . . Hover . | . . . . . Flight . | . . . . . Fastest Speed 50 | 50 120 120 120 100 Average Speed 119 | 116 120 120 120 121 Slowest Speed 150 | 150 120 120 120 150 Overloaded Moves . | . . . . . Propulsion Burnouts . | . . . . . Robots Hopped . | . . . . . Cave-ins Triggered . | . . . . . Exploration Rate (%) 21 | 6 30 11 26 32 Regions Visited 4 Branch Regions 1 Pre-discovered Areas . | . . . . . Known Exits Taken 3 | . 1 1 1 . Unknown Exits Taken 1 | 1 . . . . Scrap Searched . | . . . . . Spaces Dug . | . . . . . Terrain Destroyed . | . . . . . Melee . | . . . . . Projectile . | . . . . . AOE . | . . . . . Actions | -11 -10 -9 -9 -9 --------- Run | Scr Mat Mat Sto Gar Total 681 | 62 146 154 144 175 Wait 40 | . 16 12 3 9 Move 505 | 49 119 122 112 103 Hop . | . . . . . Pick Up 19 | 7 5 3 . 4 Fast Attach 3 | . . 3 . . Attach 17 | 6 1 2 . 8 Detach . | . . . . . Swap 4 | . . 2 2 . Drop 5 | . . 2 3 . Fire 64 | . 5 8 24 27 Melee . | . . . . . Ram . | . . . . . Kick . | . . . . . Crush . | . . . . . Escape Stasis 24 | . . . . 24 Rewire . | . . . . . Trap . | . . . . . Miscellaneous . | . . . . . Route ------- -11/Scrapyard -10/Materials -9/Materials -9/Storage -9/Garrison History --------- Turn | Location | Event 21 | -11/Scrapyard | Discovered new exit (range 15) 71 | -11/Scrapyard | Entered Materials 243 | -10/Materials | Discovered new exit (range 5) 250 | -10/Materials | Identified exit to Materials 251 | -10/Materials | Entered another Materials area 251 | -9/Materials | Evolved 2 slots: Utility x1, Weapon x1 436 | -9/Materials | Discovered new exit (range 11) 448 | -9/Materials | Identified exit to Storage 449 | -9/Materials | Entered Storage 572 | -9/Storage | Garrison activated, responded to threat 668 | -9/Storage | Identified exit to Garrison 668 | -9/Storage | Entered Garrison 722 | -9/Garrison | Triggered checkpoint 728 | -9/Garrison | Triggered checkpoint 756 | -9/Garrison | Core integrity fell below 50% 798 | -9/Garrison | Lost 8 parts (1p2n1u4w) 901 | -9/Garrison | Core integrity fell below 20% 911 | -9/Garrison | Destroyed by G-34 Mercenary with Small Laser Last Messages --------------- 00810_ Field strength at 70. 00812_ Field strength at 55. 00813_ Field strength at 40. 00814_ Field strength at 25. 00815_ Field strength at 10. 00816_ Stasis field depleted. 00841_ Acquired Aluminum Leg. 00843_ Acquired 30 matter. 00844_ Acquired 47 matter. 00847_ Acquired Heat Sink. 00875_ B-36 Bruiser destroyed. 00875_ Switching to secondary target: G-34 Mercenary. 00879_ Imp. EM Shotgun destroyed. 00891_ Aluminum Leg destroyed. 00891_ Heat Sink destroyed. 00893_ G-34 Mercenary destroyed. 00894_ Assault Rifle destroyed. 00900_ Acquired Sml. Laser. 00901_ Aluminum Leg destroyed. 00907_ Sml. Laser destroyed. Map ----- +----------------------------------------------------+ | ??# #??????? #?????????????????????????????????? | | ??# #??????# #?????????????????????????????????? | | ??# #??????# #?????????????????????????????????? | | ?## ##""""## ##????????????????????????????????? | | ## #####????????????????????????????? | | ?????????????????????????????? | | ???????????????????????????????? | | ?# ## ## #????????????????????????????????? | | ## ## ## #????????????????????????????????? | | "????????????????????????????????? | | "????????????????????????????????? | | "????????????????????????????????? | | "????????????????????????????????? | | ## ## % ## #????????????????????????????????? | | ## ## ## ############?????????????????????? | | = #?????????????????????? | | * ! #####?????????????????? | | ## %^^ + #?????????????????? | | ?## ## ########+####=g=#?????????????????????? | | ??# ## #???????????# *g#?????????????????????? | | ??# #######???????????# #?????????????????????? | | ??+ #?????????????????#^ #?????????????????????? | | ?## #?????????????????#^ g#?????????????????????? | | ??# #?????????????????#% #?????????????????????? | | ### #?????????????????# ##"""###??????????????? | | #?????????????????# @ ??????? | | #?????????????????# ^ ??????? | | ######?????????????????# #############?????????? | | ???????????????????????# #?????????????????????? | | ???????????????????????# #?????????????????????? | | ???????????????????????# #?????????????????????? | | ???????????????????????# #?????????????????????? | | ???????????????????????# ?????????????????????? | | ???????????????????????# ?????????????????????? | | ???????????????????????# #?????????????????????? | | ???????????????????????# #?????????????????????? | | ???????????????????????# #?????????????????????? | | ???????????????????????# #?????????????????????? | | ???????????????????????# #?????????????????????? | | ???????????????????????# #?????????????????????? | | ???????????????????????? ??????????????????????? | | ???????????????????????? ??????????????????????? | | ???????????????????????? ??????????????????????? | | ?????????????????????????????????????????????????? | | ?????????????????????????????????????????????????? | | ?????????????????????????????????????????????????? | | ?????????????????????????????????????????????????? | | ?????????????????????????????????????????????????? | | ?????????????????????????????????????????????????? | | ?????????????????????????????????????????????????? | +----------------------------------------------------+ Best States ------------- Heat Dissipation 38 Energy Generation 10 Energy Capacity 250 Matter Stores 300 Matter Capacity 300 Sight Range 18 Terrain Scan Density 10 Evasion (%) 40 Item Schematics ----------------- None Robot Schematics ------------------ None Fabricated ------------ Nothing Alien Tech Used ----------------- None Achievements -------------- None Challenges ------------ None Game ------ Seed CannonDeliveryProcessor Manual? 0 Play Time 00:11:52 Cumulative 6.1 hours Start 2020.07.20 @ 21:49:55 End 2020.07.21 @ 21:23:40 Sessions 2 Manual Loads 0 Difficulty Rogue Special Mode None Game No. 10 Rogue 10 Adventurer 0 Explorer 0 Win Type - Total 0 Types 0/0/0/0/0/0/0 Lore% 6 Gallery% 14 Achievement% 12 Wizard Run 0 Options --------- ASCII 0 Keyboard 0 Movement Mouse Keybinds 0 Fullscreen 1 Font 18/X11 Map View 76x50 Tactical HUD 1 Map Filters NONE Filters NONE Steam 1 RUN: 0810b659-2af7-4692-9bda-7c220737a338